Cogmind - Beta 15 @@@ ROGUE MODE // 2025.06.13 @ 00:08:30 Player: SuperSwiss Result: Self-destructed Performance ------------- Evolutions (2) 1000 Regions Visited (5) 1000 Robots Destroyed (74) 370 Value Destroyed (2091) 2091 Prototype IDs (30) 600 Alien Tech Used (0) 0 Bonus (300) 300 TOTAL SCORE: 5361 Bonus ------- Aligned with FarCom 300 Cogmind --------- Core Integrity 215/550 Matter 267/300 Energy 125/125 System Corruption 3% Temperature Cool (0) Movement Rolling (220) Ox8 Location -8/Materials Parts ------- > --- POWER (1) -------- Light Ion Engine > --- PROPULSION (4) --- Light Treads Light Treads Improved Treads Compact Wheel > --- UTILITY (4) ------ Huge Storage Unit Core Shielding Medium Reactive Plating Medium Reactive Plating > --- WEAPON (2) ------- Minigun Enhanced Autogun > --- INVENTORY (25) --- Light Deuterium Engine Light Nuclear Core Light Treads Compact Wheel Improved Flight Unit Cesium-ion Thruster Signal Interpreter Actuator Array PSU Rigger Beam Cannon Heavy Assault Rifle Autogun Autogun Autogun Rocket Launcher Missile Launcher Missile Launcher Missile Launcher Missile Launcher Missile Launcher Scythe Peak State ------------ > --- POWER ------------ Light Ion Engine > --- PROPULSION ------- Light Treads Carbon-fiber Leg Carbon-fiber Leg Compact Wheel > --- UTILITY ---------- Huge Storage Unit Core Shielding Medium Reactive Plating Medium Reactive Plating > --- WEAPON ----------- Minigun Enhanced Autogun > --- INVENTORY -------- Light Deuterium Engine Light Nuclear Core Compact Wheel Improved Flight Unit Cesium-ion Thruster Signal Interpreter Actuator Array PSU Rigger Beam Cannon Heavy Assault Rifle Autogun Autogun Autogun Rocket Launcher Missile Launcher Missile Launcher Missile Launcher Missile Launcher Scythe [Rating: 31] Favorites ----------- Power Light Ion Engine Engine Light Ion Engine Power Core Light Nuclear Core Propulsion Armored Wheel Treads Light Treads Leg Carbon-fiber Leg Wheel Armored Wheel Utility Light Armor Plating Device Improved Heat Sink Storage Large Storage Unit Processor Machine Analyzer Protection Light Armor Plating Weapon Autogun Energy Gun Medium Laser Ballistic Gun Autogun Launcher Grenade Launcher Slashing Weapon Scythe Build | -11 -10 -10 -10 -9 -8 ------- Run | Yrd Mat Min Exi Min Mat Slots Evolved 4 | . . . . . 4 Power . | . . . . . . Propulsion 2 | . . . . . 2 Utility 2 | . . . . . 2 Weapon . | . . . . . . Parts Attached 62 | 7 17 3 . 1 34 Power 6 | 1 4 . . . 1 Engine 4 | 1 2 . . . 1 Core 2 | . 2 . . . . Reactor . | . . . . . . Propulsion 22 | 2 5 . . . 15 Treads 10 | 2 2 . . . 6 Leg 3 | . . . . . 3 Wheel 9 | . 3 . . . 6 Hover . | . . . . . . Flight . | . . . . . . Utility 18 | 2 4 1 . . 11 Device 4 | 1 . . . . 3 Storage 4 | 1 1 . . . 2 Processor 2 | . . . . . 2 Hackware . | . . . . . . Protection 8 | . 3 1 . . 4 Artifact . | . . . . . . Weapon 16 | 2 4 2 . 1 7 Energy Gun 2 | 1 1 . . . . Energy Cannon . | . . . . . . Ballistic Gun 9 | 1 3 . . 1 4 Ballistic Cannon . | . . . . . . Launcher 3 | . . 2 . . 1 Special Weapon . | . . . . . . Impact Weapon . | . . . . . . Slashing Weapon 2 | . . . . . 2 Piercing Weapon . | . . . . . . Special Melee Weapon . | . . . . . . Unidentified Prototypes 1 | . . . . . 1 Parts Lost 27 | . 8 1 . . 18 Power 3 | . 2 . . . 1 Propulsion 10 | . 2 . . . 8 Utility 7 | . 1 1 . . 5 Weapon 7 | . 3 . . . 4 Highest Loss Streak 5 | . 5 1 . . 5 To Critical Strikes . | . . . . . . Average Backups 13 | 4 11 14 14 15 16 Power . | . . . . . 1 Propulsion 1 | 1 1 2 2 2 1 Utility 4 | 1 5 4 4 5 4 Weapon 6 | . 4 8 8 8 9 Tool/Special . | . . . . . . Unused Backups 24 | . 5 . . . 19 Power 2 | . . . . . 2 Propulsion 4 | . 1 . . . 3 Utility 7 | . 4 . . . 3 Weapon 11 | . . . . . 11 Tool/Special . | . . . . . . Average Slot Usage (%) 93 | . 95 100 100 100 88 Engine 6 | . 2 14 14 14 7 Core 3 | . 9 . . . . Treads 10 | . 23 . . . 5 Leg 1 | . . . . . 3 Wheel 17 | . 3 28 28 28 24 Device 3 | . 4 . . . 4 Storage 11 | . 14 14 14 14 9 Processor 1 | . . . . . 4 Protection 11 | . 9 14 14 14 11 Energy Gun 2 | . 5 . . . . Ballistic Gun 18 | . 21 23 14 28 15 Launcher 1 | . . 4 14 . . Peak Build Rating 31 | 7 13 13 12 13 31 Average Rating 15 | 6 9 12 12 13 24 On Entrance 9 | . 7 13 12 12 13 Naked Turns . | . . . . . . Heaviest Build 130 | 13 32 32 32 32 130 Greatest Support 48 | 40 40 24 24 24 48 Greatest Overweight (x) 9 | . 8 1 1 1 9 Average Overweight (x) 1 | . . 1 1 1 2 Largest Inventory Capacity 25 | 8 15 15 15 15 25 Average Capacity 16 | 7 12 15 15 15 23 Most Carried 21 | 7 15 15 15 15 21 Average Carried 13 | 4 11 14 14 15 16 Final Capacity 25 | 8 15 15 15 15 25 Final Carried 21 | 7 15 14 15 15 21 Class Distribution -------------------- 83% | Mutant 12% | Scavenger-Mutant 3% | Skirmisher Dominant Class ---------------- Mutant | -10/Materials Mutant | -10/Mines Mutant | -10/Exiles Mutant | -9/Mines Mutant | -8/Materials Resources | -11 -10 -10 -10 -9 -8 ----------- Run | Yrd Mat Min Exi Min Mat Matter Collected 2579 | 378 586 58 . 54 1503 Remotely 109 | . . . . . 109 Salvage Created 2738 | 130 671 53 . . 1884 Parts 164 | 18 41 7 . . 98 Haulers Intercepted 2 | . 1 . . . 1 Recyclers Shooed . | . . . . . . Parts Field Recycled . | . . . . . . Retrieved Matter . | . . . . . . Parts Self-Destructed . | . . . . . . Prevented . | . . . . . . Kills | -11 -10 -10 -10 -9 -8 ------- Run | Yrd Mat Min Exi Min Mat Combat Hostiles Destroyed 50 | . 14 6 . . 30 Guns 40 | . 14 1 . . 25 AOE 10 | . . 5 . . 5 Classes Destroyed 12 | 2 5 1 . . 4 Worker 5 | 1 1 . . . 3 Builder 4 | . 1 . . . 3 Tunneler 6 | 5 1 . . . . Hauler 2 | . 1 . . . 1 Recycler 6 | . . . . . 6 Watcher 4 | . 3 . . . 1 Swarmer 6 | . 3 3 . . . Grunt 34 | . 11 . . . 23 Brawler 1 | . . . . . 1 Duelist 1 | . . . . . 1 Sentry 5 | . . . . . 5 Assembled 3 | . . 3 . . . Best Kill Streak 9 | 2 4 3 . . 9 Combat Bots Only 6 | . 4 3 . . 6 Max Kills in Single Turn 3 | 1 2 3 . . 3 Gunslinging . | . . . . . . Exploded 3 | . . 3 . . 2 Melee . | . . . . . . Uniques/NPCs Destroyed . | . . . . . . Combat | -11 -10 -10 -10 -9 -8 -------- Run | Yrd Mat Min Exi Min Mat Hostile Shots Fired 310 | . 112 15 . . 183 Missed 63 | . 21 6 . . 36 Hits 247 | . 91 9 . . 147 Melee 6 | . . . . . 6 Projectile 241 | . 91 9 . . 141 Critical Strikes 2 | . . . . . 2 Damage Taken 3846 | . 1211 97 . . 2538 Core 466 | . 112 19 . . 335 Absorbed by Shields . | . . . . . . Redirected to Shielding 18 | . . . . . 18 Ignored by Resistances 38 | . . . . . 38 Regen/Repaired (Parts) 138 | . 138 . . . . Core Remaining (%) 73 | 100 . . . 47 . Volleys Fired 244 | 12 99 7 . . 126 Largest 2 | 2 2 2 . . 2 Hottest 70 | 70 70 53 . . 60 Shots Fired 476 | 24 192 13 . . 247 Gun 466 | 24 192 11 . . 239 Cannon . | . . . . . . Launcher 10 | . . 2 . . 8 Special . | . . . . . . Kinetic 410 | 12 148 11 . . 239 Thermal 56 | 12 44 . . . . Explosive 10 | . . 2 . . 8 Electromagnetic . | . . . . . . Robot Hit Streak 20 | 3 20 3 . . 20 Robot Miss Streak 5 | 1 4 5 . . 3 Penetration Max . | . . . . . . Secondary Targets 3 | . 2 . . . 1 Max Gunslinging Chain 1 | . 1 . . . 1 Shots Hit Robots 343 | 15 123 5 . . 200 Core Hits 147 | 7 39 7 . . 94 Critical Kills . | . . . . . . Critical Parts Destroyed 3 | . 2 . . . 1 Critical Strikes 7 | 1 5 . . . 1 Burn 4 | 1 3 . . . . Destroy 3 | . 2 . . . 1 Melee Attacks 15 | . . . . . 15 Impact . | . . . . . . Slashing 15 | . . . . . 15 Piercing . | . . . . . . Sneak Attacks 8 | . . . . . 8 Combat Hostiles . | . . . . . . Follow-up Attacks . | . . . . . . Damage Inflicted 6514 | 198 1542 233 . . 4541 Guns 4665 | 198 1358 45 . . 3064 Cannons . | . . . . . . Explosions 1317 | . 184 188 . . 945 Melee 532 | . . . . . 532 Ramming . | . . . . . . Kinetic 4216 | 84 1023 45 . . 3064 Thermal 633 | 114 519 . . . . Explosive 1133 | . . 188 . . 945 Electromagnetic . | . . . . . . Impact . | . . . . . . Slashing 532 | . . . . . 532 Piercing . | . . . . . . Highest Corruption 3 | . . . . . 3 Average Corruption 3 | . . . . . 3 Corruption Purged . | . . . . . . Corruption Blocked . | . . . . . . Effects 20 | . . . . . 20 Message Errors 4 | . . . . . 4 Matter Fused 5 | . . . . . 5 Heat Flow Errors 1 | . . . . . 1 Energy Discharges 2 | . . . . . 2 Parts Rejected 2 | . . . . . 2 Data Loss (minor) 3 | . . . . . 3 Misfires 2 | . . . . . 2 Weapon Failures 1 | . . . . . 1 Overload Shots . | . . . . . . Overflow Damage 174 | . 121 . . . 53 Projectiles . | . . . . . . Explosions 129 | . 121 . . . 8 Melee 45 | . . . . . 45 Knockbacks . | . . . . . . Impact . | . . . . . . Kinetic . | . . . . . . Secondary . | . . . . . . Self-Inflicted Damage 332 | . 149 31 . . 152 Shots 12 | . 2 2 . . 8 Rammed . | . . . . . . Targets Rammed . | . . . . . . Kicked . | . . . . . . Crushed . | . . . . . . Highest Temperature 264 | 45 264 24 . . 169 Average Temperature 52 | 15 65 11 . . 38 Received Heat Transfer 1794 | . 552 . . . 1242 Effects 2 | . 2 . . . . Interference 2 | . 2 . . . . Siege Activations . | . . . . . . Martial Activations . | . . . . . . Shielding Activations . | . . . . . . Robots Disrupted . | . . . . . . Combat Hostiles . | . . . . . . Robots Corrupted . | . . . . . . Combat Hostiles . | . . . . . . Parts Fried . | . . . . . . Impact Corruptions . | . . . . . . Robots Melted . | . . . . . . Combat Hostiles . | . . . . . . Parts Melted 4 | . 4 . . . . Heat Transferred 1691 | 407 1284 . . . . Parts Sabotaged . | . . . . . . Parts Stolen . | . . . . . . Parts Stripped . | . . . . . . Power Chain Reactions . | . . . . . . Alert | -11 -10 -10 -10 -9 -8 ------- Run | Yrd Mat Min Exi Min Mat Maximum Alert Level 1 | . . . . . 1 Low Security (%) 87 | 100 100 100 . 100 70 Level 1 12 | . . . . . 29 Level 2 . | . . . . . . Level 3 . | . . . . . . Level 4 . | . . . . . . Level 5 . | . . . . . . High Security . | . . . . . . Max Security . | . . . . . . Peak Influence 364 | 10 112 82 . 15 364 Initial 12 | . . 12 . . . Average 83 | . 35 14 . 1 163 Influence Increases 1642 | 30 497 87 . 30 998 Destroy 0b10 Robot/C 940 | . 280 60 . . 600 Destroy 0b10 Robot/NC 135 | 30 35 . . . 70 Destroy Leader 202 | . 68 10 . . 124 Successful Hack 61 | . 30 . . . 31 Disable Machine 60 | . 30 . . . 30 Destroy Structure 79 | . 39 17 . . 23 Lose Combat Pursuer 165 | . 15 . . 30 120 Influence Decreases 1293 | 30 466 118 . 30 649 Entered New Map 19 | . . 19 . . . Time Decay 992 | 30 386 67 . 30 479 Lost Part 250 | . 80 . . . 170 Lost Ally 32 | . . 32 . . . Squads Dispatched 6 | . 2 . . . 4 Investigation 1 | . . . . . 1 Extermination . | . . . . . . Reinforcement 5 | . 2 . . . 3 Assault . | . . . . . . Garrison . | . . . . . . Intercept . | . . . . . . Searches Triggered . | . . . . . . Construction Impeded 1 | . . . . . 1 Haulers Reinforced . | . . . . . . Active Scanning Responses . | . . . . . . Cargo Convoy Interrupts . | . . . . . . Stealth | -11 -10 -10 -10 -9 -8 --------- Run | Yrd Mat Min Exi Min Mat Distress Signals 12 | . 2 1 . . 9 Communications Jammed . | . . . . . . Distress Signals . | . . . . . . Times Spotted 97 | . 30 13 . 2 52 Peak Tracking Total 13 | . 5 13 . 2 6 Tactical Retreats 11 | . 1 2 . 2 6 Traps | -11 -10 -10 -10 -9 -8 ------- Run | Yrd Mat Min Exi Min Mat Traps Triggered 1 | . . . . . 1 Indirectly . | . . . . . . Trap Hack Attempts . | . . . . . . Triggered . | . . . . . . Disarmed . | . . . . . . Reprogrammed . | . . . . . . Reused . | . . . . . . Traps Extracted . | . . . . . . Installed . | . . . . . . Triggered . | . . . . . . Machines | -11 -10 -10 -10 -9 -8 ---------- Run | Yrd Mat Min Exi Min Mat Machines Disabled 4 | . 2 . . . 2 Max in Single Turn 2 | . 2 . . . 1 Garrison Access 1 | . . . . . 1 Machines Repaired . | . . . . . . Machines Dismantled . | . . . . . . Machines Sabotaged . | . . . . . . Overloaded Fab Kills . | . . . . . . Hacking | -11 -10 -10 -10 -9 -8 --------- Run | Yrd Mat Min Exi Min Mat Machines Accessed 21 | . 6 . 5 . 10 Terminals 14 | . 5 . . . 9 Fabricators . | . . . . . . Repair Stations 1 | . 1 . . . . Recycling Units . | . . . . . . Scanalyzers . | . . . . . . Garrison Access 1 | . . . . . 1 Total Hacks 94 | . 18 . 50 . 26 Successful 79 | . 13 . 50 . 16 Failed 15 | . 5 . . . 10 Catastrophic . | . . . . . . Database Lockouts . | . . . . . . Manual 31 | . 11 . 1 . 19 Terminals 41 | . 16 . . . 25 Fabricators . | . . . . . . Repair Stations 2 | . 2 . . . . Recycling Units . | . . . . . . Scanalyzers . | . . . . . . Garrison Access 1 | . . . . . 1 Terminal Hacks 63 | . 7 . 50 . 6 Record 49 | . . . 49 . . Robot Analysis 3 | . 3 . . . . Prototype ID Bank 3 | . 2 . . . 1 Branch Access Points 1 | . . . . . 1 Alert Level 1 | . . . . . 1 Locate Traps 1 | . 1 . . . . Maintenance Status 1 | . . . . . 1 Hauler Manifests 2 | . 1 . . . 1 Registered Components 1 | . . . . . 1 Proto ID Catalog 1 | . . . 1 . . Fabricator Hacks . | . . . . . . Repair Station Hacks 2 | . 2 . . . . Scan Component 1 | . 1 . . . . Repair 1 | . 1 . . . . Recycling Unit Hacks . | . . . . . . Scanalyzer . | . . . . . . Garrison Access Hacks 1 | . . . . . 1 Seal Access 1 | . . . . . 1 Unauthorized Hacks 13 | . 4 . . . 9 Terminals 13 | . 4 . . . 9 Botnet 13 | . 4 . . . 9 Fabricators . | . . . . . . Repair Stations . | . . . . . . Recycling Units . | . . . . . . Scanalyzers . | . . . . . . Garrison Access . | . . . . . . Data Cores Recovered . | . . . . . . Used . | . . . . . . Hacking Detections 14 | . 6 . . . 8 Full Trace Events . | . . . . . . Feedback Events . | . . . . . . Feedback Blocked . | . . . . . . Robot Schematics Acquired . | . . . . . . Robots Built . | . . . . . . Authchips . | . . . . . . Time . | . . . . . . Total Robot Build Rating . | . . . . . . Part Schematics Acquired . | . . . . . . Parts Built . | . . . . . . Authchips . | . . . . . . Time . | . . . . . . Total Part Build Rating . | . . . . . . Parts Repaired 1 | . 1 . . . . Time 26 | . 26 . . . . Parts Recycled . | . . . . . . Recycled Matter . | . . . . . . Retrieved Matter . | . . . . . . Retrieved Components . | . . . . . . Parts Scanalyzed . | . . . . . . Part Schematics Acquired . | . . . . . . Parts Damaged . | . . . . . . Bothacking | -11 -10 -10 -10 -9 -8 ------------ Run | Yrd Mat Min Exi Min Mat Used RIF Installer . | . . . . . . Robots Hacked . | . . . . . . Non-combat . | . . . . . . Combat . | . . . . . . Robot Hacks Applied . | . . . . . . Relay Couplers Released . | . . . . . . Fabnet Peak Effective % . | . . . . . . Robots Rewired . | . . . . . . Allies Hacked . | . . . . . . Hacks Repelled . | . . . . . . Allies | -11 -10 -10 -10 -9 -8 -------- Run | Yrd Mat Min Exi Min Mat Total Allies 3 | . . 3 . . . Largest Group 2 | . . 2 . . . Highest-Rated Group 50 | . . 50 . . . Highest-Rated Ally 31 | . . 31 . . . Total Orders . | . . . . . . Ally Attacks 8 | . . 8 . . . Total Damage 84 | . . 84 . . . Kills 1 | . . 1 . . . Allies Corrupted . | . . . . . . Allies Melted . | . . . . . . Intel | -11 -10 -10 -10 -9 -8 ------- Run | Yrd Mat Min Exi Min Mat Active Infowar (turns) 1520 | 175 474 . . . 871 Terrain 156 | . . . . . 156 Seismic 649 | 175 474 . . . . Machine Analysis 715 | . . . . . 715 Robot Analysis Total 3 | . 3 . . . . Derelict Logs Recovered 3 | . . 1 . 2 . Drone Launches . | . . . . . . Drone Recoveries . | . . . . . . Exploration | -11 -10 -10 -10 -9 -8 ------------- Run | Yrd Mat Min Exi Min Mat Turns Passed 4363 | 282 1506 376 305 178 1716 Spaces Moved 2475 | 147 695 330 290 168 845 Core 7 | 5 2 . . . . Treads 657 | 142 515 . . . . Legs . | . . . . . . Wheels 1811 | . 178 330 290 168 845 Hover . | . . . . . . Flight . | . . . . . . Fastest Speed 50 | 50 90 105 105 105 90 Average Speed 127 | 156 147 105 105 105 127 Slowest Speed 450 | 160 450 105 105 105 220 Overloaded Moves . | . . . . . . Propulsion Burnouts . | . . . . . . Robots Hopped . | . . . . . . Potential Cave-ins . | . . . . . . Cave-ins Triggered . | . . . . . . Exploration Rate (%) 59 | 10 94 68 69 51 67 Regions Visited 5 Branch Regions 3 Pre-discovered Areas 2 | . . 1 1 . . Known Exits Taken . | . . . . . . Unknown Exits Taken 5 | 1 1 1 1 1 . Scrap Searched 1 | . . . . 1 . Spaces Dug 5 | . . . . . 5 Terrain Destroyed 85 | . 48 17 . . 20 Melee 5 | . . . . . 5 Projectile . | . . . . . . AOE 80 | . 48 17 . . 15 Terrain Rammed . | . . . . . . Walls Destroyed . | . . . . . . Machines Disabled . | . . . . . . Actions | -11 -10 -10 -10 -9 -8 --------- Run | Yrd Mat Min Exi Min Mat Total 3244 | 172 1003 347 290 170 1262 Wait 349 | . 154 7 . . 188 Move 2470 | 146 694 329 289 167 845 Hop . | . . . . . . Pick Up 49 | 7 19 . 1 1 21 Fast Attach 33 | 7 6 . . . 20 Attach 19 | . 5 1 . . 13 Detach 3 | . 1 . . . 2 Swap 33 | . 11 3 . 1 18 Drop 29 | . 14 . . 1 14 Fire 244 | 12 99 7 . . 126 Melee 15 | . . . . . 15 Ram . | . . . . . . Kick . | . . . . . . Crush . | . . . . . . Escape Stasis . | . . . . . . Rewire . | . . . . . . Trap . | . . . . . . Miscellaneous . | . . . . . . Route ------- -11/Scrapyard -10/Materials (discovered 5 exits: [*Mat x3] / [*Min x2]) -10/Mines (discovered 2 exits: [*Mat] / *Exi) -10/Exiles -9/Mines -8/Materials (discovered 1 exit: *Fac) History --------- Turn | Location | Event 12 | -11/Scrapyard | Discovered new exit (range 15) 283 | -11/Scrapyard | Entered Materials 303 | -10/Materials | Build established: Mutant 507 | -10/Materials | Repaired Lgt. Treads 548 | -10/Materials | Discovered new exit (range 10) 871 | -10/Materials | Discovered new exit (range 8) 1311 | -10/Materials | Discovered new exit (range 10) 1593 | -10/Materials | Lost 5 parts (1p2n1u1w) 1637 | -10/Materials | Discovered new exit (range 14) 1717 | -10/Materials | Discovered new exit (range 16) 1789 | -10/Materials | Entered Mines 1799 | -10/Mines | Learned 4 Materials zone layouts 1854 | -10/Mines | Discovered new exit (range 10) 1892 | -10/Mines | Assembled infested the area 1897 | -10/Mines | Assisted by a Guerilla fighting off Assembled 2047 | -10/Mines | Core integrity fell below 50% 2052 | -10/Mines | Escorted by a lone wolf Derelict 2072 | -10/Mines | Learned location of Storage (-7) 2154 | -10/Mines | Deemed a non-threat by the Exiles lab entrance 2154 | -10/Mines | Discovered new exit (range 5) 2165 | -10/Mines | Entered Exiles 2165 | -10/Exiles | Accompanied by 1 ally 2192 | -10/Exiles | Met 8R-AWN 2210 | -10/Exiles | Met EX-HEX 2239 | -10/Exiles | Met EX-BIN 2252 | -10/Exiles | Aligned with FarCom system 2253 | -10/Exiles | Given EX-Vault access code 2277 | -10/Exiles | Opened EX-Vault 2284 | -10/Exiles | Found PSU Rigger 2334 | -10/Exiles | Warned to stay clear of 0b10 Research branches 2366 | -10/Exiles | Met EX-DEC 2371 | -10/Exiles | Learned location of Zion (-7) 2457 | -10/Exiles | Discovered new exit (range 14) 2470 | -10/Exiles | Left Exiles lab with PSU Rigger 2470 | -10/Exiles | Entered Mines 2505 | -9/Mines | Received a Rocket Launcher from a helpful Derelict 2549 | -9/Mines | Learned Materials emergency access door positions 2581 | -9/Mines | Learned Materials garrison access intel 2628 | -9/Mines | Discovered new exit (range 8) 2648 | -9/Mines | Entered Materials 2648 | -8/Materials | Evolved 4 slots: Propulsion x2, Utility x2 2649 | -8/Materials | Identified exit to Factory 2651 | -8/Materials | Loaded intel: 1 garrison access location 3567 | -8/Materials | Lost 5 parts (3n2u) 3705 | -8/Materials | Lost 4 parts (1p1n1u1w) 3860 | -8/Materials | Core integrity fell below 50% 3892 | -8/Materials | Lost 4 parts (2n1u1w) 4364 | -8/Materials | Self-destructed Last Messages --------------- 04216_ W-25 Informer sends out distress signal. 04218_ Acquired Enh. Autogun. 04221_ Acquired Missile Launcher. 04227_ K-01 Serf collects debris. 04228_ Acquired Missile Launcher. 04230_ K-01 Serf collects debris. 04231_ Acquired Missile Launcher. 04240_ System corrupted: Heat flow error (+185). 04250_ Y-45 Defender suffers critical hit (Destroy). 04250_ Destroyed Hvy. Assault Rifle. 04250_ Y-45 Defender destroyed. 04255_ Acquired 53 matter. 04261_ Dropped Carbon-fiber Leg. 04262_ Acquired Lgt. Treads. 04263_ Dropped Carbon-fiber Leg. 04265_ &HR7VGDO6IBTPVBEZUTYG| 04271_ Acquired Lgt. Treads. 04330_ GNW>J|UDBWKC:MTYU3WIECS J 04354_ ALERT: Suspicious intruders detected, dispatching Specialist reinforcements to area. Map ----- +----------------------------------------------------+ | ?????????????????????????????????????????????????? | | ?????????????????????????????????????????????????? | | ?????????????????????????????????????????????????? | | ?????????????????????????????????????????????????? | | ?????????????????????????????????????????????????? | | ?????????????????????????????????????????????????? | | ?????????????????????????????????????????????????? | | ?????????????????????????????????????????????????? | | ?????????????????????????????????????????????????? | | ?????????????????????????????????????????????????? | | ???????????????????????????????? ???????????????? | | ???????????????????????????????? ???????????????? | | ???????????????????????????????? ???????????????? | | ?????????????????????##########? ???????????????? | | ?????????????????????# +? ???????????????? | | ?????????????????????# #? ???????????????? | | ?????????????????????# #? ??w????????????? | | ?????????????????????# ## ?????????##????? | | ?????????????????????#""" ## ??????? ???? | | ?????????????????????#""" ## ?????""" """???? | | ?????????????????????#""" ## #?????""" """???? | | ?????????????????????#""" ## #?????""" """ #?? | | ???????????????????### !## #????? ??? | | ????????###??????### #####+##### #???? ???? | | ??????###Y######?# !=] # ##### ##### ""T""?????? | | ??????# #?#] !] @ + """""?????? | | ??????# #?# !] * #######+###########?????? | | ??????# #?#########???# #????????????# | | ??????# ! "" #???### ####??# #??????????? | | ??????# """#???# !#??# #??????????# " | | ??????# S"#???# *#### #??????????# " | | ####### """#???# !!+ + #??????????# " | | # """#???# ==#### #??????????# | | # #???# ] #??########??????????# " | | ####+#####???# ] #???????????########## " | | # #????####+###???????????# # " | | # ####### #???????????# * # | | # #######?##### #+# | | / ^^ + # | | # / ^ ############# + | | # ####### #???# # " " # | | # #?????###!###???# [ # """ ### | | #########???????# #?????# # """ #?# | | ???????????????########*#?????? # #?# | | ???????????????# [ =#=#???????? ############ | | ???????????????# !=#!###########+############ | | ???????????????# """"=+!* == | | ???????????????# """"*#!#### | | ???????????????# """!%#%#### T | | ???????????????? #*#""" """ """ """ | +----------------------------------------------------+ Best States ------------- Heat Dissipation 45 Energy Generation 14 Energy Capacity 160 Matter Stores 300 Matter Capacity 300 Sight Range 16 Terrain Scan Range 16 Terrain Scan Density 10 Armor Coverage 600 Resistance: KI 30 Core Shielding 20 Evasion (%) 42 Targeting Accuracy 6 Recoil Reduction 2 Item Schematics ----------------- None Robot Schematics ------------------ None Fabricated ------------ Nothing Repaired ---------- Lgt. Treads | 1% | -10/Materials Alien Tech Used ----------------- None Achievements -------------- None Challenges ------------ None Game ------ Seed StormHardlightSteel Manual? 0 Play Time 00:41:54 Cumulative 88.5 hours Start 2025.06.12 @ 23:26:44 End 2025.06.13 @ 00:08:30 Sessions 1 Manual Loads 0 Difficulty Rogue Special Mode None Game No. 85 Rogue 82 Adventurer 0 Explorer 3 Win Type - Total 1 Types 1/0/0/0/0/0/0/0/0/0 Lore% 22 Gallery% 41 Achievement% 37 Wizard Run 0 Options --------- Layout 0 ASCII 0 Keyboard 0 Movement Numpad Keybinds 0 Fullscreen 2 Font 16/SmallcapsGlow Map View 88x55 Zoom Use 0% Tactical HUD 1 Map Filters NONE Filters NONE Steam 1 RUN: 71b3ed72-d378-450a-8e18-bfc3089755d1